fUST/lending_fUST_20240422
["ID","MTS","AMOUNT","RATE_DAILY","PERIOD"]
[323175695,1713771063668,-488.5296354,0.00025205,2]
[323175696,1713771063679,-694.59,0.00025205,2]
[323175697,1713771063688,-500.0,0.00025205,2]
[323175698,1713771063698,-500.0,0.00025205,2]
[323175699,1713771063708,-1436.04,0.00025205,2]
[323175700,1713771063717,-532.95,0.00025205,2]
[323175701,1713771063728,-500.0,0.00025205,2]
[323175702,1713771063738,-500.0,0.00025205,2]
[323175703,1713771063747,-651.21,0.00025205,2]
[323175704,1713771063758,-500.0,0.00025205,2]
[323175705,1713771063766,-500.0,0.00025205,2]
[323175706,1713771063776,-500.0,0.00025205,2]
[323175707,1713771063785,-983.71,0.00025205,2]
[323175708,1713771063795,-748.79,0.00025205,2]
[323175709,1713771063804,-773.15,0.00025205,2]
[323175710,1713771063813,-1482.76,0.00025205,2]
[323175711,1713771063822,-500.0,0.00025205,2]
[323175712,1713771063831,-713.22,0.00025205,2]
[323175713,1713771063841,-500.0,0.00025205,2]
[323175714,1713771063850,-500.0,0.00025205,2]
[323175715,1713771063859,-520.76,0.00025205,2]
[323175716,1713771063869,-500.0,0.00025205,2]
[323175717,1713771063878,-845.63,0.00025205,2]
[323175718,1713771063887,-500.0,0.00025205,2]
[323175719,1713771063895,-500.0,0.00025205,2]
[323175720,1713771063905,-500.0,0.00025205,2]
[323175721,1713771063914,-500.0,0.00025205,2]
[323175722,1713771063925,-546.12,0.00025205,2]
[323175723,1713771063935,-657.75,0.00025205,2]
[323175724,1713771063944,-1593.07,0.00025205,2]
[323175725,1713771063953,-540.67,0.00025205,2]
[323175726,1713771063962,-788.31,0.00025205,2]
[323175727,1713771063971,-1886.84,0.00025205,2]
[323175728,1713771063980,-500.0,0.00025205,2]
[323175729,1713771063990,-1320.93,0.00025205,2]
[323175730,1713771063999,-500.0,0.00025205,2]
[323175731,1713771064008,-1499.42,0.00025205,2]
[323175732,1713771064017,-551.6,0.00025205,2]
[323175733,1713771064026,-512.96,0.00025205,2]
[323175734,1713771064036,-216.90948973,0.00025205,2]
[323175735,1713771064046,-2279.58,0.00025205,2]
[323175736,1713771064056,-2400.32,0.00025205,2]
[323175737,1713771064065,-1042.84,0.00025205,2]
[323175738,1713771064075,-987.76,0.00025205,2]
[323175739,1713771064084,-500.0,0.00025205,2]
[323175740,1713771064094,-891.53,0.00025205,2]
[323175741,1713771064103,-662.27,0.00025205,2]
[323175742,1713771064112,-544.28,0.00025205,2]
[323175743,1713771064120,-1893.47,0.00025205,2]
[323175744,1713771064130,-1209.09,0.00025205,2]
[323175745,1713771064138,-1729.68,0.00025205,2]
[323175746,1713771064148,-520.04,0.00025205,2]
[323175747,1713771064158,-530.72,0.00025205,2]
[323175748,1713771064167,-5968.09,0.00025205,2]
[323175749,1713771064176,-500.0,0.00025205,2]
[323175750,1713771064185,-814.84,0.00025205,2]
[323175751,1713771064195,-4318.26,0.00025205,2]
[323175752,1713771064204,-855.27,0.00025205,2]
[323175753,1713771064213,-632.1916452,0.00025205,2]
[323175754,1713771064222,-8414.55,0.00025205,2]
[323175755,1713771064231,-1637.34,0.00025205,2]
[323175756,1713771064240,-500.0,0.00025205,2]
[323175757,1713771064249,-511.45,0.00025205,2]
[323175758,1713771064258,-5942.22,0.00025205,2]
[323175759,1713771064267,-864.39,0.00025205,2]
[323175760,1713771064276,-1481.71,0.00025205,2]
[323175761,1713771064286,-599.44,0.00025205,2]
[323175762,1713771064296,-929.38,0.00025205,2]
[323175763,1713771064305,-500.0,0.00025205,2]
[323175764,1713771064314,-824.57,0.00025205,2]
[323175765,1713771064323,-683.82,0.00025205,2]
[323175766,1713771064333,-500.0,0.00025205,2]
[323175767,1713771064342,-6331.87,0.00025205,2]
[323175768,1713771064351,-740.12,0.00025205,2]
[323175769,1713771064360,-263.5929627,0.00025205,2]
[323175770,1713771064369,-1229.03,0.00025205,2]
[323175771,1713771064378,-500.0,0.00025205,2]
[323175772,1713771064387,-1773.05,0.00025205,2]
[323175773,1713771064397,-500.0,0.00025205,2]
[323175774,1713771064406,-9168.41,0.00025205,2]
[323175775,1713771064415,-603.54,0.00025205,2]
[323175776,1713771064424,-545.2,0.00025205,2]
[323175777,1713771064433,-500.0,0.00025205,2]
[323175778,1713771064442,-637.24,0.00025205,2]
[323175779,1713771064452,-500.0,0.00025205,2]
[323175780,1713771064465,-910.54,0.00025205,2]
[323175781,1713771064474,-671.87,0.00025205,2]
[323175782,1713771064483,-1223.34,0.00025205,2]
[323175783,1713771064492,-5648.11,0.00025205,2]
[323175784,1713771064502,-816.69,0.00025205,2]
[323175785,1713771064512,-1094.87,0.00025205,2]
[323175786,1713771064521,-4561.56,0.00025205,2]
[323175787,1713771064530,-500.0,0.00025205,2]
[323175788,1713771064539,-500.0,0.00025205,2]
[323175789,1713771064550,-500.0,0.00025205,2]
[323175790,1713771064559,-500.0,0.00025205,2]
[323175791,1713771064570,-521.6,0.00025205,2]
[323175792,1713771064579,-748.06,0.00025205,2]
[323175793,1713771064588,-660.25,0.00025205,2]
[323175794,1713771064596,-417.0,0.00025238,2]
[323175795,1713771064605,-9538.97460234,0.00025288,2]
[323175796,1713771064613,-186.88972342,0.00025447,2]
[323175797,1713771064621,-909.83,0.00025479,2]
[323175798,1713771064630,-500.0,0.00025479,2]
[323175799,1713771064639,-649.35,0.00025479,2]
[323175800,1713771064648,-781.95,0.00025479,2]
[323175801,1713771064657,-500.0,0.00025479,2]
[323175802,1713771064666,-618.79,0.00025479,2]
[323175803,1713771064676,-500.0,0.00025479,2]
[323175804,1713771064685,-500.0,0.00025479,2]
[323175805,1713771064694,-1676.89,0.00025479,2]
[323175806,1713771064703,-1796.53,0.00025479,2]
[323175807,1713771064712,-500.0,0.00025479,2]
[323175808,1713771064721,-444.57069016,0.00025479,2]
[323175809,1713771064730,-532.06,0.00025479,2]
[323175810,1713771064739,-528.59,0.00025479,2]
[323175811,1713771064748,-510.11,0.00025479,2]
[323175812,1713771064757,-563.65,0.00025479,2]
[323175813,1713771064766,-1715.53,0.00025479,2]
[323175814,1713771064775,-500.0,0.00025479,2]
[323175815,1713771064784,-500.0,0.00025479,2]
[323175816,1713771064794,-838.09,0.00025479,2]
[323175817,1713771064803,-500.0,0.00025479,2]
[323175818,1713771064813,-500.0,0.00025479,2]
[323175819,1713771064822,-1211.3,0.00025479,2]
[323175820,1713771064831,-500.0,0.00025479,2]
[323175821,1713771064840,-1791.31,0.00025479,2]
[323175822,1713771064849,-765.95,0.00025479,2]
[323175823,1713771064858,-672.43,0.00025479,2]
[323175824,1713771064868,-500.0,0.00025479,2]
[323175825,1713771064877,-703.56,0.00025479,2]
[323175826,1713771064886,-810.54,0.00025479,2]
[323175827,1713771064895,-500.0,0.00025479,2]
[323175828,1713771064905,-1339.24,0.00025479,2]
[323175829,1713771064914,-3162.37,0.00025479,2]
[323175830,1713771064923,-592.65812812,0.00025479,2]
[323175831,1713771064932,-1126.55,0.00025479,2]
[323175832,1713771064941,-940.4,0.00025479,2]
[323175833,1713771064950,-584.61,0.00025479,2]
[323175834,1713771064959,-500.0,0.00025479,2]
[323175835,1713771064969,-2107.45,0.00025479,2]
[323175836,1713771064978,-1238.19,0.00025479,2]
[323175837,1713771064987,-500.0,0.00025479,2]
[323175838,1713771064997,-631.52,0.00025479,2]
[323175839,1713771065006,-694.59,0.00025479,2]
[323175840,1713771065015,-500.0,0.00025479,2]
[323175841,1713771065025,-500.0,0.00025479,2]
[323175842,1713771065034,-1436.04,0.00025479,2]
[323175843,1713771065046,-532.95,0.00025479,2]
[323175844,1713771065055,-500.0,0.00025479,2]
[323175845,1713771065064,-500.0,0.00025479,2]
[323175846,1713771065074,-651.21,0.00025479,2]
[323175847,1713771065083,-500.0,0.00025479,2]
[323175848,1713771065092,-302.81701918,0.00025479,2]
[323175849,1713771065101,-500.0,0.00025479,2]
[323175850,1713771065111,-983.71,0.00025479,2]
[323175851,1713771065120,-748.79,0.00025479,2]
[323175852,1713771065129,-773.15,0.00025479,2]
[323175853,1713771065139,-1482.76,0.00025479,2]
[323175854,1713771065148,-500.0,0.00025479,2]
[323175855,1713771065157,-713.22,0.00025479,2]
[323175856,1713771065167,-500.0,0.00025479,2]
[323175857,1713771065176,-500.0,0.00025479,2]
[323175858,1713771065185,-520.76,0.00025479,2]
[323175859,1713771065195,-500.0,0.00025479,2]
[323175860,1713771065204,-845.63,0.00025479,2]
[323175861,1713771065213,-500.0,0.00025479,2]
[323175862,1713771065224,-500.0,0.00025479,2]
[323175863,1713771065233,-500.0,0.00025479,2]
[323175864,1713771065243,-500.0,0.00025479,2]
[323175865,1713771065252,-546.12,0.00025479,2]
[323175866,1713771065262,-657.75,0.00025479,2]
[323175867,1713771065272,-1593.07,0.00025479,2]
[323175868,1713771065282,-540.67,0.00025479,2]
[323175869,1713771065292,-788.31,0.00025479,2]
[323175870,1713771065303,-1886.84,0.00025479,2]
[323175871,1713771065313,-437.80096065,0.00025479,2]
[323175872,1713771065323,-1320.93,0.00025479,2]
[323175873,1713771065332,-500.0,0.00025479,2]
[323175874,1713771065342,-1499.42,0.00025479,2]
[323175875,1713771065352,-551.6,0.00025479,2]
[323175876,1713771065361,-512.96,0.00025479,2]
[323175877,1713771065371,-2279.58,0.00025479,2]
[323175878,1713771065380,-2400.32,0.00025479,2]
[323175879,1713771065390,-1042.84,0.00025479,2]
[323175880,1713771065513,-987.76,0.00025479,2]
[323175881,1713771065524,-500.0,0.00025479,2]
[323175882,1713771065533,-891.53,0.00025479,2]
[323175883,1713771065545,-662.27,0.00025479,2]
[323175884,1713771065555,-544.28,0.00025479,2]
[323175885,1713771065564,-1893.47,0.00025479,2]
[323175886,1713771065573,-1209.09,0.00025479,2]
[323175887,1713771065582,-1729.68,0.00025479,2]
[323175888,1713771065591,-520.04,0.00025479,2]
[323175889,1713771065601,-530.72,0.00025479,2]
[323175890,1713771065610,-5968.09,0.00025479,2]
[323175891,1713771065620,-500.0,0.00025479,2]
[323175892,1713771065629,-814.84,0.00025479,2]
[323175893,1713771065638,-4318.26,0.00025479,2]
[323175894,1713771065648,-855.27,0.00025479,2]
[323175895,1713771065657,-8414.55,0.00025479,2]
[323175896,1713771065666,-1637.34,0.00025479,2]
[323175897,1713771065675,-500.0,0.00025479,2]
[323175898,1713771065685,-511.45,0.00025479,2]
[323175899,1713771065694,-5942.22,0.00025479,2]
[323175900,1713771065703,-864.39,0.00025479,2]
[323175901,1713771065712,-1481.71,0.00025479,2]
[323175902,1713771065722,-599.44,0.00025479,2]
[323175903,1713771065731,-929.38,0.00025479,2]
[323175904,1713771065742,-375.15452879,0.00025479,2]
[323175905,1713771065751,-824.57,0.00025479,2]
[323175906,1713771065761,-683.82,0.00025479,2]
[323175907,1713771065770,-500.0,0.00025479,2]
[323175908,1713771065779,-6331.87,0.00025479,2]
[323175909,1713771065788,-740.12,0.00025479,2]
[323175910,1713771065798,-1229.03,0.00025479,2]
[323175911,1713771065807,-500.0,0.00025479,2]
[323175912,1713771065816,-1773.05,0.00025479,2]
[323175913,1713771065826,-500.0,0.00025479,2]
[323175914,1713771065836,-9168.41,0.00025479,2]
[323175915,1713771065845,-603.54,0.00025479,2]
[323175916,1713771065855,-545.2,0.00025479,2]
[323175917,1713771065864,-500.0,0.00025479,2]
[323175918,1713771065873,-637.24,0.00025479,2]
[323175919,1713771065883,-500.0,0.00025479,2]
[323175920,1713771065892,-910.54,0.00025479,2]
[323175921,1713771065901,-671.87,0.00025479,2]
[323175922,1713771065911,-1223.34,0.00025479,2]
[323175923,1713771065920,-5648.11,0.00025479,2]
[323175924,1713771065929,-816.69,0.00025479,2]
[323175925,1713771065939,-1094.87,0.00025479,2]
[323175926,1713771065948,-4561.56,0.00025479,2]
[323175927,1713771065957,-500.0,0.00025479,2]
[323175928,1713771065967,-500.0,0.00025479,2]
[323175929,1713771065976,-500.0,0.00025479,2]
[323175930,1713771065985,-500.0,0.00025479,2]
[323175931,1713771065994,-521.6,0.00025479,2]
[323175932,1713771066003,-748.06,0.00025479,2]
[323175933,1713771066012,-660.25,0.00025479,2]
[323175934,1713771066020,-300.0,0.000255,2]
[323175935,1713771066030,-1180.56587,0.000255,2]
[323175936,1713771066038,-636.87074424,0.00025651,2]
[323175937,1713771066050,-909.83,0.00025753,2]
[323175938,1713771066061,-257.29036738,0.00025753,2]
[323175939,1713771066070,-649.35,0.00025753,2]
[323175940,1713771066079,-781.95,0.00025753,2]
[323175941,1713771066089,-500.0,0.00025753,2]
[323175942,1713771066097,-618.79,0.00025753,2]
[323175943,1713771066106,-500.0,0.00025753,2]
[323175944,1713771066115,-500.0,0.00025753,2]
[323175945,1713771066125,-1676.89,0.00025753,2]
[323175946,1713771066134,-1796.53,0.00025753,2]
[323175947,1713771066144,-500.0,0.00025753,2]
[323175948,1713771066154,-532.06,0.00025753,2]
[323175949,1713771066164,-528.59,0.00025753,2]
[323175950,1713771066174,-510.11,0.00025753,2]
[323175951,1713771066186,-563.65,0.00025753,2]
[323175952,1713771066195,-1715.53,0.00025753,2]
[323175953,1713771066205,-500.0,0.00025753,2]
[323175954,1713771066214,-500.0,0.00025753,2]
[323175955,1713771066222,-838.09,0.00025753,2]
[323175956,1713771066232,-500.0,0.00025753,2]
[323175957,1713771066241,-500.0,0.00025753,2]
[323175958,1713771066250,-1211.3,0.00025753,2]
[323175959,1713771066259,-630.01738262,0.00025753,2]
[323175960,1713771066269,-1791.31,0.00025753,2]
[323175961,1713771066278,-765.95,0.00025753,2]
[323175962,1713771066287,-672.43,0.00025753,2]
[323175963,1713771066297,-500.0,0.00025753,2]
[323175964,1713771066306,-703.56,0.00025753,2]
[323175965,1713771066315,-810.54,0.00025753,2]
[323175966,1713771066324,-500.0,0.00025753,2]
[323175967,1713771066334,-1339.24,0.00025753,2]
[323175968,1713771066343,-3162.37,0.00025753,2]
[323175969,1713771066352,-1126.55,0.00025753,2]
[323175970,1713771066361,-940.4,0.00025753,2]
[323175971,1713771066370,-584.61,0.00025753,2]
[323175972,1713771066379,-500.0,0.00025753,2]
[323175973,1713771066389,-2107.45,0.00025753,2]
[323175974,1713771066398,-1238.19,0.00025753,2]
[323175975,1713771066407,-500.0,0.00025753,2]
[323175976,1713771066415,-631.52,0.00025753,2]
[323175977,1713771066425,-694.59,0.00025753,2]
[323175978,1713771066434,-500.0,0.00025753,2]
[323175979,1713771066443,-345.99481315,0.00025753,2]
[323175980,1713771066452,-1436.04,0.00025753,2]
[323175981,1713771066465,-532.95,0.00025753,2]
[323175982,1713771066474,-500.0,0.00025753,2]
[323175983,1713771066482,-500.0,0.00025753,2]
[323175984,1713771066491,-651.21,0.00025753,2]
[323175985,1713771066501,-500.0,0.00025753,2]
[323175986,1713771066510,-500.0,0.00025753,2]
[323175987,1713771066520,-983.71,0.00025753,2]
[323175988,1713771066529,-748.79,0.00025753,2]
[323175989,1713771066539,-773.15,0.00025753,2]
[323175990,1713771066550,-1482.76,0.00025753,2]
[323175991,1713771066560,-500.0,0.00025753,2]
[323175992,1713771066569,-713.22,0.00025753,2]
[323175993,1713771066578,-500.0,0.00025753,2]
[323175994,1713771066587,-500.0,0.00025753,2]
[323175995,1713771066595,-520.76,0.00025753,2]
[323175996,1713771066604,-500.0,0.00025753,2]
[323175997,1713771066613,-845.63,0.00025753,2]
[323175998,1713771066622,-500.0,0.00025753,2]
[323175999,1713771066632,-500.0,0.00025753,2]
[323176000,1713771066641,-500.0,0.00025753,2]
[323176001,1713771066650,-610.34102109,0.00025753,2]
[323176002,1713771066659,-546.12,0.00025753,2]
[323176003,1713771066668,-657.75,0.00025753,2]
[323176004,1713771066677,-1593.07,0.00025753,2]
[323176005,1713771066687,-540.67,0.00025753,2]
[323176006,1713771066697,-788.31,0.00025753,2]
[323176007,1713771066706,-1886.84,0.00025753,2]
[323176008,1713771066716,-1320.93,0.00025753,2]
[323176009,1713771066727,-500.0,0.00025753,2]
[323176010,1713771066736,-1499.42,0.00025753,2]
[323176011,1713771066748,-551.6,0.00025753,2]
[323176012,1713771066759,-512.96,0.00025753,2]
[323176013,1713771066769,-2279.58,0.00025753,2]
[323176014,1713771066779,-2400.32,0.00025753,2]
[323176015,1713771066789,-1042.84,0.00025753,2]
[323176016,1713771066799,-987.76,0.00025753,2]
[323176017,1713771066810,-500.0,0.00025753,2]
[323176018,1713771066821,-891.53,0.00025753,2]
[323176019,1713771066830,-662.27,0.00025753,2]
[323176020,1713771066840,-544.28,0.00025753,2]
[323176021,1713771066849,-1893.47,0.00025753,2]
[323176022,1713771066859,-1209.09,0.00025753,2]
[323176023,1713771066871,-1729.68,0.00025753,2]
[323176024,1713771066881,-520.04,0.00025753,2]
[323176025,1713771066890,-530.72,0.00025753,2]
[323176026,1713771066899,-5968.09,0.00025753,2]
[323176027,1713771066909,-500.0,0.00025753,2]
[323176028,1713771066919,-814.84,0.00025753,2]
[323176029,1713771066929,-4318.26,0.00025753,2]
[323176030,1713771066939,-855.27,0.00025753,2]
[323176031,1713771066948,-8414.55,0.00025753,2]
[323176032,1713771066958,-1637.34,0.00025753,2]
[323176033,1713771066966,-500.0,0.00025753,2]
[323176034,1713771066975,-511.45,0.00025753,2]
[323176035,1713771066984,-5942.22,0.00025753,2]
[323176036,1713771066993,-864.39,0.00025753,2]
[323176037,1713771067002,-1481.71,0.00025753,2]
[323176038,1713771067012,-599.44,0.00025753,2]
[323176039,1713771067021,-929.38,0.00025753,2]
[323176040,1713771067030,-824.57,0.00025753,2]
[323176041,1713771067039,-683.82,0.00025753,2]
[323176042,1713771067051,-500.0,0.00025753,2]
[323176043,1713771067060,-6331.87,0.00025753,2]
[323176044,1713771067069,-740.12,0.00025753,2]
[323176045,1713771067077,-1229.03,0.00025753,2]
[323176046,1713771067086,-500.0,0.00025753,2]
[323176047,1713771067095,-1773.05,0.00025753,2]
[323176048,1713771067104,-500.0,0.00025753,2]
[323176049,1713771067113,-9168.41,0.00025753,2]
[323176050,1713771067122,-603.54,0.00025753,2]
[323176051,1713771067131,-545.2,0.00025753,2]
[323176052,1713771067140,-500.0,0.00025753,2]
[323176053,1713771067149,-637.24,0.00025753,2]
[323176054,1713771067158,-500.0,0.00025753,2]
[323176055,1713771067168,-910.54,0.00025753,2]
[323176056,1713771067177,-671.87,0.00025753,2]
[323176057,1713771067186,-1223.34,0.00025753,2]
[323176058,1713771067195,-5648.11,0.00025753,2]
[323176059,1713771067205,-816.69,0.00025753,2]
[323176060,1713771067214,-1094.87,0.00025753,2]
[323176061,1713771067224,-4561.56,0.00025753,2]
[323176062,1713771067233,-500.0,0.00025753,2]
[323176063,1713771067242,-500.0,0.00025753,2]
[323176064,1713771067252,-500.0,0.00025753,2]
[323176065,1713771067262,-500.0,0.00025753,2]
[323176066,1713771067272,-521.6,0.00025753,2]
[323176067,1713771067280,-748.06,0.00025753,2]
[323176068,1713771067290,-660.25,0.00025753,2]
[323176069,1713771067301,-172.38688403,0.00025799,2]
[323176070,1713771067313,-1341.79631386,0.00025802,2]
[323176071,1713771067322,-1341.79631386,0.00025828,2]
[323176072,1713771067332,-1341.79631386,0.00025838,2]
[323176073,1713771067342,-152.63832014,0.00025859,2]
[323176074,1713771067351,-172.38688403,0.00025899,2]
[323176075,1713771067361,-152.63832014,0.00025908,2]
[323176076,1713771067371,-472.79423154,0.00025913,2]
[323176077,1713771067383,-172.38688403,0.00025943,2]
[323176078,1713771067392,-151.576056,0.00025971,2]
[323176079,1713771067401,-152.63832014,0.0002598,2]
[323176080,1713771067410,-151.576056,0.00025993,2]
[323176081,1713771067419,-152.63832014,0.00025995,2]
[323176082,1713771067428,-1141.0,0.00026,2]
[323176083,1713771067437,-501.15648101,0.00026,2]
[323176084,1713771067448,-300.0,0.00026,2]
[323176085,1713771067462,-1141.0,0.00026,2]
[323176086,1713771067473,-692.61042729,0.00026,2]
[323176087,1713771067484,-501.73643231,0.00026,7]
[323176088,1713771067495,-151.576056,0.00026018,2]
[323176089,1713771067507,-151.576056,0.00026023,2]
[323176090,1713771067517,-154.27281615,0.00026024,2]
[323176091,1713771067527,-909.83,0.00026027,2]
[323176092,1713771067537,-649.35,0.00026027,2]
[323176093,1713771067547,-781.95,0.00026027,2]
[323176094,1713771067558,-500.0,0.00026027,2]
[323176095,1713771067567,-618.79,0.00026027,2]
[323176096,1713771067577,-500.0,0.00026027,2]
[323176097,1713771067589,-500.0,0.00026027,2]
[323176098,1713771067599,-1676.89,0.00026027,2]
[323176099,1713771067608,-1796.53,0.00026027,2]
[323176100,1713771067618,-500.0,0.00026027,2]
[323176101,1713771067628,-532.06,0.00026027,2]
[323176102,1713771067637,-528.59,0.00026027,2]
[323176103,1713771067647,-510.11,0.00026027,2]
[323176104,1713771067656,-563.65,0.00026027,2]
[323176105,1713771067666,-1715.53,0.00026027,2]
[323176106,1713771067676,-500.0,0.00026027,2]
[323176107,1713771067685,-500.0,0.00026027,2]
[323176108,1713771067695,-838.09,0.00026027,2]
[323176109,1713771067814,-500.0,0.00026027,2]
[323176110,1713771067825,-500.0,0.00026027,2]
[323176111,1713771067836,-1211.3,0.00026027,2]
[323176112,1713771067845,-1791.31,0.00026027,2]
[323176113,1713771067855,-765.95,0.00026027,2]
[323176114,1713771067865,-672.43,0.00026027,2]
[323176115,1713771067874,-347.78771654,0.00026027,2]
[323176116,1713771067884,-703.56,0.00026027,2]
[323176117,1713771067894,-810.54,0.00026027,2]
[323176118,1713771067903,-500.0,0.00026027,2]
[323176119,1713771067913,-1339.24,0.00026027,2]
[323176120,1713771067922,-3162.37,0.00026027,2]
[323176121,1713771067932,-1126.55,0.00026027,2]
[323176122,1713771067942,-940.4,0.00026027,2]
[323176123,1713771067952,-584.61,0.00026027,2]
[323176124,1713771067962,-500.0,0.00026027,2]
[323176125,1713771067972,-2107.45,0.00026027,2]
[323176126,1713771067982,-340.88147253,0.00026027,2]
[323176158,1713772232719,-596.73090927,0.00020616,2]
[323176159,1713772232728,-522.810626,0.00020617,2]
[323176161,1713772232738,-549.48258406,0.00020778,2]
[323176162,1713772232748,-300.0,0.00020788,2]
[323176164,1713772232758,-300.0,0.00020788,2]
[323176165,1713772232767,-9180.66001852,0.00020789,2]
[323176166,1713772232779,-603.54986432,0.00020789,2]
[323176167,1713772232788,-419.39507495,0.000217,2]
[323176168,1713772232798,-264.41872668,0.00021789,2]
[323176169,1713772232807,-1580.3861005,0.00021817,2]
[323176170,1713772232819,-1527.42572185,0.00021817,2]
[323176171,1713772232838,-199.95444694,0.00021915,2]
[323176172,1713772232848,-155.56620625,0.00021916,2]
[323176173,1713772232857,-500.0,0.00021917,2]
[323176174,1713772232866,-1108.46,0.00021917,2]
[323176175,1713772232876,-453.87610501,0.00021917,2]
[323176182,1713772238455,-46.12389499,0.00021917,2]
[323176183,1713772238465,-538.52,0.00021917,2]
[323176184,1713772238475,-500.0,0.00021917,2]
[323176185,1713772238484,-500.0,0.00021917,2]
[323176186,1713772238496,-500.0,0.00021917,2]
[323176187,1713772238506,-500.0,0.00021917,2]
[323176188,1713772238515,-500.0,0.00021917,2]
[323176189,1713772238525,-500.0,0.00021917,2]
[323176190,1713772238534,-500.0,0.00021917,2]
[323176191,1713772238543,-500.0,0.00021917,2]
[323176192,1713772238552,-500.0,0.00021917,2]
[323176193,1713772238561,-500.0,0.00021917,2]
[323176194,1713772238570,-500.0,0.00021917,2]
[323176195,1713772238580,-500.0,0.00021917,2]
[323176196,1713772238589,-786.19,0.00021917,2]
[323176197,1713772238598,-500.0,0.00021917,2]
[323176198,1713772238607,-500.0,0.00021917,2]
[323176199,1713772238617,-500.0,0.00021917,2]
[323176200,1713772238626,-1423.14,0.00021917,2]
[323176201,1713772238636,-500.0,0.00021917,2]
[323176202,1713772238646,-500.0,0.00021917,2]
[323176203,1713772238655,-500.0,0.00021917,2]
[323176204,1713772238664,-500.0,0.00021917,2]
[323176205,1713772238673,-702.49,0.00021917,2]
[323176206,1713772238682,-500.0,0.00021917,2]
[323176207,1713772238692,-500.0,0.00021917,2]
[323176208,1713772238701,-500.0,0.00021917,2]
[323176209,1713772238710,-296.60357415,0.00021917,2]
[323176210,1713772238719,-500.0,0.00021917,2]
[323176211,1713772238728,-500.0,0.00021917,2]
[323176212,1713772238737,-500.0,0.00021917,2]
[323176213,1713772238748,-500.0,0.00021917,2]
[323176214,1713772238757,-500.0,0.00021917,2]
[323176215,1713772238766,-500.0,0.00021917,2]
[323176216,1713772238775,-427.16289908,0.00021917,2]
[323176217,1713772238784,-503.79,0.00021917,2]
[323176218,1713772238794,-500.0,0.00021917,2]
[323176219,1713772238803,-500.0,0.00021917,2]
[323176220,1713772238814,-500.0,0.00021917,2]
[323176221,1713772238825,-500.0,0.00021917,2]
[323176222,1713772238834,-500.0,0.00021917,2]
[323176223,1713772238844,-500.0,0.00021917,2]
[323176224,1713772238854,-500.0,0.00021917,2]
[323176225,1713772238864,-500.0,0.00021917,2]
[323176226,1713772238872,-500.0,0.00021917,2]
[323176227,1713772238881,-500.0,0.00021917,2]
[323176228,1713772238890,-500.0,0.00021917,2]
[323176229,1713772238900,-500.0,0.00021917,2]
[323176230,1713772238910,-500.0,0.00021917,2]
[323176231,1713772238919,-500.0,0.00021917,2]
[323176232,1713772238929,-500.0,0.00021917,2]
[323176233,1713772238938,-500.0,0.00021917,2]